Cogmind - Beta 16.1 @@@ ROGUE MODE // 2026.02.11 @ 18:21:19 Player: Jennifer Result: Destroyed by 7E-T7X(R) with Subdweller Machine Gun Performance ------------- Evolutions (0) 0 Regions Visited (2) 400 Robots Destroyed (3) 15 Value Destroyed (89) 89 Prototype IDs (0) 0 Alien Tech Used (0) 0 Bonus (0) 0 TOTAL SCORE: 504 Bonus ------- None Cogmind --------- Core Integrity 0/250 Matter 244/300 Energy 249/250 System Corruption 0% Temperature Cool (0) Movement Rolling (95) Ox1 Location -10/Subcaves Parts ------- > --- POWER (1) -------- Ion Engine > --- PROPULSION (2) --- Wheel > --- UTILITY (2) ------ Medium Storage Unit Structural Scanner > --- WEAPON (2) ------- Assault Rifle Light Assault Rifle > --- INVENTORY (10) --- Ion Engine Wheel Heat Sink Small Storage Unit Light Assault Rifle Heavy Assault Rifle Battle Rifle Mining Laser Peak State ------------ > --- POWER ------------ Ion Engine > --- PROPULSION ------- Wheel Compact Wheel > --- UTILITY ---------- Medium Storage Unit Structural Scanner > --- WEAPON ----------- Assault Rifle Light Assault Rifle > --- INVENTORY -------- Ion Engine Wheel Wheel Small Storage Unit Light Assault Rifle Heavy Assault Rifle Battle Rifle Mining Laser [Rating: 8] Favorites ----------- Power Ion Engine Engine Ion Engine Propulsion Wheel Wheel Wheel Utility Medium Storage Unit Device Structural Scanner Storage Medium Storage Unit Weapon Light Assault Rifle Ballistic Gun Light Assault Rifle Build | -11 -10 -10 ------- Run | Yrd Mat Sub Slots Evolved . | . . . Power . | . . . Propulsion . | . . . Utility . | . . . Weapon . | . . . Parts Attached 10 | 6 3 1 Power 1 | 1 . . Engine 1 | 1 . . Core . | . . . Reactor . | . . . Propulsion 3 | 2 . 1 Treads . | . . . Leg . | . . . Wheel 3 | 2 . 1 Hover . | . . . Flight . | . . . Utility 4 | 1 3 . Device 1 | . 1 . Storage 3 | 1 2 . Processor . | . . . Hackware . | . . . Protection . | . . . Artifact . | . . . Weapon 2 | 2 . . Energy Gun . | . . . Energy Cannon . | . . . Ballistic Gun 2 | 2 . . Ballistic Cannon . | . . . Launcher . | . . . Special Weapon . | . . . Impact Weapon . | . . . Slashing Weapon . | . . . Piercing Weapon . | . . . Special Melee Weapon . | . . . Unidentified Prototypes . | . . . Parts Lost 2 | . . 2 Power . | . . . Propulsion 2 | . . 2 Utility . | . . . Weapon . | . . . Highest Loss Streak 1 | . . 1 To Critical Strikes . | . . . Average Backups 6 | 2 5 7 Power . | . 1 1 Propulsion 1 | 1 2 1 Utility . | . . 1 Weapon 2 | . 1 3 Tool/Special . | . . . Unused Backups 9 | . 2 7 Power 1 | . . 1 Propulsion 3 | . 2 1 Utility 1 | . . 1 Weapon 4 | . . 4 Tool/Special . | . . . Average Slot Usage (%) 95 | . 91 99 Engine 14 | . 14 14 Wheel 27 | . 28 27 Device 9 | . 5 14 Storage 14 | . 14 14 Ballistic Gun 28 | . 28 28 Peak Build Rating 8 | 6 7 8 Average Rating 6 | 4 6 7 On Entrance 4 | . 6 7 Avg Prop Armor Cover (%) . | . . . Naked Turns . | . . . Heaviest Build 19 | 13 19 19 Greatest Support 26 | 26 26 26 Greatest Overweight (x) 1 | 1 . 1 Average Overweight (x) . | . . . Largest Inventory Capacity 10 | 8 10 10 Average Capacity 9 | 6 9 10 Most Carried 9 | 4 8 9 Average Carried 6 | 2 5 7 Final Capacity 10 | 8 10 10 Final Carried 8 | 4 6 8 Class Distribution -------------------- 100% | Mutant Dominant Class ---------------- Mutant | -10/Materials Mutant | -10/Subcaves Resources | -11 -10 -10 ----------- Run | Yrd Mat Sub Matter Collected 293 | 189 4 100 Remotely . | . . . Salvage Created 120 | . 20 100 Parts 9 | . 3 6 Haulers Intercepted . | . . . Recyclers Shooed . | . . . Parts Field Recycled . | . . . Retrieved Matter . | . . . Parts Self-Destructed 4 | . . 4 Prevented . | . . . Parts Restored . | . . . Kills | -11 -10 -10 ------- Run | Yrd Mat Sub Combat Hostiles Destroyed 3 | . 1 2 Guns 3 | . 1 2 Classes Destroyed 3 | . 1 2 Swarmer 1 | . 1 . Grunt 1 | . . 1 Sentry 1 | . . 1 Best Kill Streak 2 | . 1 2 Combat Bots Only 2 | . 1 2 Max Kills in Single Turn 1 | . 1 1 Gunslinging . | . . . Exploded . | . . . Melee . | . . . Uniques/NPCs Destroyed . | . . . Combat | -11 -10 -10 -------- Run | Yrd Mat Sub Hostile Shots Fired 30 | . 9 21 Missed 8 | . 3 5 Hits 22 | . 6 16 Projectile 22 | . 6 16 AOE 1 | . 1 . Damage Taken 529 | . 207 322 Core 260 | . 146 114 Absorbed by Shields . | . . . Core Remaining (%) 100 | 100 . . Volleys Fired 17 | . 11 6 Largest 2 | . 2 2 Hottest 40 | . 40 40 Shots Fired 34 | . 22 12 Gun 34 | . 22 12 Cannon . | . . . Launcher . | . . . Special . | . . . Kinetic 34 | . 22 12 Thermal . | . . . Explosive . | . . . Electromagnetic . | . . . Robot Hit Streak 7 | . 4 7 Robot Miss Streak 3 | . 3 2 Penetration Max . | . . . Secondary Targets 1 | . . 1 Max Gunslinging Chain 1 | . . 1 Shots Hit Robots 19 | . 11 8 Core Hits 8 | . 4 4 Critical Kills . | . . . Critical Parts Destroyed . | . . . Critical Strikes . | . . . Melee Attacks . | . . . Impact . | . . . Slashing . | . . . Piercing . | . . . Sneak Attacks . | . . . Combat Hostiles . | . . . Follow-up Attacks . | . . . Damage Inflicted 176 | . 99 77 Guns 176 | . 99 77 Cannons . | . . . Explosions . | . . . Melee . | . . . Ramming . | . . . Kinetic 176 | . 99 77 Thermal . | . . . Explosive . | . . . Electromagnetic . | . . . Impact . | . . . Slashing . | . . . Piercing . | . . . Highest Corruption . | . . . Average Corruption . | . . . Corruption Purged . | . . . Corruption Blocked . | . . . Overload Shots . | . . . Overflow Damage . | . . . Projectiles . | . . . Explosions . | . . . Melee . | . . . Knockbacks . | . . . Impact . | . . . Kinetic . | . . . Secondary . | . . . Self-Inflicted Damage . | . . . Shots . | . . . Rammed 2 | . 2 . Targets Rammed 2 | . 2 . Kicked . | . . . Crushed . | . . . Highest Temperature . | . . . Average Temperature . | . . . Received Heat Transfer 33 | . . 33 Siege Activations . | . . . Martial Activations . | . . . Shielding Activations . | . . . Robots Disrupted . | . . . Combat Hostiles . | . . . Robots Corrupted . | . . . Combat Hostiles . | . . . Parts Fried . | . . . Impact Corruptions . | . . . Robots Melted . | . . . Combat Hostiles . | . . . Parts Melted . | . . . Heat Transferred . | . . . Parts Sabotaged . | . . . Parts Stolen . | . . . Parts Stripped . | . . . Power Chain Reactions . | . . . Alert | -11 -10 -10 ------- Run | Yrd Mat Sub Maximum Alert Level . | . . . Low Security (%) 100 | 100 100 . Level 1 . | . . . Level 2 . | . . . Level 3 . | . . . Level 4 . | . . . Level 5 . | . . . High Security . | . . . Max Security . | . . . Peak Influence 30 | . 30 . Initial . | . . . Average 2 | . 3 . Influence Increases 101 | . 61 40 Destroy 0b10 Robot/C 60 | . 20 40 Destroy Leader 10 | . 10 . Successful Hack 31 | . 31 . Influence Decreases 101 | . 61 40 Time Decay 101 | . 61 40 Squads Dispatched 1 | . 1 . Investigation . | . . . Extermination . | . . . Reinforcement 1 | . 1 . Assault . | . . . Garrison . | . . . Intercept . | . . . Searches Triggered . | . . . Construction Impeded . | . . . Haulers Reinforced . | . . . Active Scanning Responses . | . . . Cargo Convoy Interrupts . | . . . Stealth | -11 -10 -10 --------- Run | Yrd Mat Sub Distress Signals . | . . . Communications Jammed . | . . . Distress Signals . | . . . Times Spotted 13 | . 9 4 Peak Tracking Total 4 | . 4 2 Tactical Retreats . | . . . Traps | -11 -10 -10 ------- Run | Yrd Mat Sub Traps Triggered 1 | . . 1 Indirectly . | . . . Trap Hack Attempts . | . . . Triggered . | . . . Disarmed . | . . . Reprogrammed . | . . . Reused . | . . . Traps Extracted . | . . . Installed . | . . . Triggered . | . . . Machines | -11 -10 -10 ---------- Run | Yrd Mat Sub Machines Disabled . | . . . Max in Single Turn . | . . . Machines Repaired . | . . . Machines Dismantled . | . . . Machines Sabotaged . | . . . Overloaded Fab Kills . | . . . Hacking | -11 -10 -10 --------- Run | Yrd Mat Sub Machines Accessed 5 | . 5 . Terminals 5 | . 5 . Fabricators . | . . . Repair Stations . | . . . Recycling Units . | . . . Scanalyzers . | . . . Garrison Access . | . . . Total Hacks 12 | . 12 . Successful 7 | . 7 . Failed 5 | . 5 . Catastrophic 2 | . 2 . Database Lockouts . | . . . Manual 9 | . 9 . Terminals 12 | . 12 . Fabricators . | . . . Repair Stations . | . . . Recycling Units . | . . . Scanalyzers . | . . . Garrison Access . | . . . Terminal Hacks 2 | . 2 . Branch Access Points 1 | . 1 . Zone Layout 1 | . 1 . Fabricator Hacks . | . . . Repair Station Hacks . | . . . Recycling Unit Hacks . | . . . Scanalyzer . | . . . Garrison Access Hacks . | . . . Unauthorized Hacks 5 | . 5 . Terminals 5 | . 5 . Assimilate 2 | . 2 . Botnet 3 | . 3 . Fabricators . | . . . Repair Stations . | . . . Recycling Units . | . . . Scanalyzers . | . . . Garrison Access . | . . . Data Cores Recovered . | . . . Used . | . . . Hacking Detections 5 | . 5 . Full Trace Events . | . . . Feedback Events . | . . . Feedback Blocked . | . . . Robot Schematics Acquired . | . . . Robots Built . | . . . Authchips . | . . . Time . | . . . Total Robot Build Rating . | . . . Part Schematics Acquired . | . . . Parts Built . | . . . Authchips . | . . . Time . | . . . Total Part Build Rating . | . . . Part Studies Acquired . | . . . Parts Repaired . | . . . Time . | . . . Parts Recycled . | . . . Recycled Matter . | . . . Retrieved Matter . | . . . Retrieved Components . | . . . Parts Scanalyzed . | . . . Part Schematics Acquired . | . . . Parts Damaged . | . . . Bothacking | -11 -10 -10 ------------ Run | Yrd Mat Sub Used RIF Installer . | . . . Robots Hacked . | . . . Non-combat . | . . . Combat . | . . . Robot Hacks Applied . | . . . Relay Couplers Released . | . . . Fabnet Peak Effective % . | . . . Robots Rewired . | . . . Allies Hacked . | . . . Hacks Repelled . | . . . Allies | -11 -10 -10 -------- Run | Yrd Mat Sub Total Allies . | . . . Largest Group . | . . . Highest-Rated Group . | . . . Highest-Rated Ally . | . . . Total Orders . | . . . Ally Attacks . | . . . Total Damage . | . . . Kills . | . . . Allies Corrupted . | . . . Allies Melted . | . . . Intel | -11 -10 -10 ------- Run | Yrd Mat Sub Active Infowar (turns) 498 | . 156 342 Structural 498 | . 156 342 Robot Analysis Total . | . . . Derelict Logs Recovered 1 | . . 1 Drone Launches . | . . . Drone Recoveries . | . . . Exploration | -11 -10 -10 ------------- Run | Yrd Mat Sub Turns Passed 796 | 67 387 342 Spaces Moved 770 | 60 378 332 Core 5 | 5 . . Treads . | . . . Legs . | . . . Wheels 765 | 55 378 332 Hover . | . . . Flight . | . . . Fastest Speed 50 | 50 90 90 Average Speed 89 | 88 90 90 Slowest Speed 100 | 100 90 95 Overloaded Moves . | . . . Propulsion Burnouts . | . . . Robots Hopped . | . . . Potential Cave-ins . | . . . Cave-ins Triggered . | . . . Exploration Rate (%) 29 | 3 59 25 Regions Visited 2 Branch Regions 1 Pre-discovered Areas . | . . . Known Exits Taken . | . . . Unknown Exits Taken 2 | 1 1 . Scrap Searched . | . . . Spaces Dug . | . . . Terrain Destroyed . | . . . Melee . | . . . Projectile . | . . . AOE . | . . . Terrain Rammed . | . . . Walls Destroyed . | . . . Machines Disabled . | . . . Actions | -11 -10 -10 --------- Run | Yrd Mat Sub Total 840 | 71 405 364 Wait 27 | 1 4 22 Move 768 | 59 377 332 Hop . | . . . Pick Up 11 | 5 3 3 Fast Attach 8 | 5 3 . Attach 2 | 1 . 1 Detach 2 | . 2 . Swap . | . . . Drop 3 | . 3 . Fire 17 | . 11 6 Melee . | . . . Ram 2 | . 2 . Kick . | . . . Crush . | . . . Escape Stasis . | . . . Rewire . | . . . Trap . | . . . Miscellaneous . | . . . Route ------- -11/Scrapyard -10/Materials (discovered 3 exits: *Min x2 / [*Sub]) -10/Subcaves (discovered 1 exit: [*Mat]) History --------- Turn | Location | Event 12 | -11/Scrapyard | Discovered new exit (range 16) 68 | -11/Scrapyard | Entered Materials 193 | -10/Materials | Discovered new exit (range 12) 246 | -10/Materials | Core integrity fell below 50% 320 | -10/Materials | Build established: Mutant 374 | -10/Materials | Identified exit to Mines 447 | -10/Materials | Discovered new exit (range 10) 455 | -10/Materials | Entered Subcaves 456 | -10/Subcaves | Shifting Twisted Machinery released Sub. Shrapnel Launcher 456 | -10/Subcaves | Approached by a straggling Scientist 515 | -10/Subcaves | Shifting Twisted Machinery released Battle Rifle 642 | -10/Subcaves | Learned location of 1 exit from Materials 706 | -10/Subcaves | A swath of the cavern ceiling suddenly collapsed 754 | -10/Subcaves | Ambushed by Subdwellers from Twisted Machinery 759 | -10/Subcaves | Core integrity fell below 20% 786 | -10/Subcaves | Discovered new exit (range 16) 797 | -10/Subcaves | Destroyed by 7E-T7X(R) with Subdweller Machine Gun Last Messages --------------- 00627_ Acquired Heat Sink. 00631_ Sml. Laser fries itself beyond repair. 00642_ Acquired derelict log, extracted data. Data stored: Materials exits (x1). Z9-BP6(c): "I think it's somewhere south of here" 00706_ GW-PVP(R) crushed by falling debris. 00706_ GW-PVP(R) destroyed. 00706_ Scrap Shield Fragment crushed. 00706_ Sub. Power Source crushed. A swath of the cavern ceiling suddenly collapses. Z9-BP6(c): "I think it's somewhere south of here" 00729_ Triggered Piercing Trap. 00729_ Spikes shoot up from the floor. 00729_ Critical hit (Impale). 00729_ Wheel destroyed. 00754_ 7E-T7X(R) emerges from the Twisted Machinery. Z9-BP6(c): "I think it's somewhere southwest of here" 00768_ Z9-BP6(c) destroyed. 00786_ EXIT=FOUND 00795_ Com. Wheel destroyed. Map ----- +----------------------------------------------------+ | ## " ##### ####### ### ??????????????????????? | | ### ### "" ##?### ???????????????????????? | | ### #### %###??## ???????????????????????? | | ### ### ######## #??????????????????????? | | # #### ####### ##?### ?????????????????? | | ##### "###### ###### ????????????????? | | ### " " ##### #### ###????? ????????? | | #### "" ##### ### ##???? ????????? | | ####### ## ###??? ?????????? | | ############ ## ##### ## ????????? | | ##???############### ##### ######?????? | | ##????????########## " #### #### ?????? | | ##????????????????### "" ### ?????? | | ??????????????????### """ ?????? | | ???????????????????## "" #????? | | ???????????????????### ###RR ## ##????? | | ???????????????????####### ###? ##????? | | ????????????????????##### ### ##?????????? | | ?????????????####???#### ### ????????? | | ?????????????########## ##??? ???????? | | ?????????????##""##### ##????? ???????? | | ?????????????## ""### ###?????? ????????? | | ?????????????## "" ## ####???????????????? | | ?????????????##""" ## ####????????????????? | | ?????????????###"" ###?????????????????? | | ??????????????### ### @ ###??????????????????? | | ??????????????## ###### ###??????????????????? | | ??????????????###"" ###### ##???????????????????? | | ??????????????##" "?????## ???????????????????? | | ??????????????## ??????## ##????????????????? | | ??????????????####??????## ###???????????????? | | ??????????????####???????? ##???????????????? | | ?????????????????????????? < ##???????????????? | | ?????????????????????????? #####???????????????? | | ??????????????????????????? ######???????????????? | | ??????????????????????????? ###??????????????????? | | ???????????????????????????" #???????????????????? | | ?????????????????????????????????????????????????? | | ?????????????????????????????????????????????????? | | ?????????????????????????????????????????????????? | | ?????????????????????????????????????????????????? | | ?????????????????????????????????????????????????? | | ?????????????????????????????????????????????????? | | ?????????????????????????????????????????????????? | | ?????????????????????????????????????????????????? | | ?????????????????????????????????????????????????? | | ?????????????????????????????????????????????????? | | ?????????????????????????????????????????????????? | | ?????????????????????????????????????????????????? | | ?????????????????????????????????????????????????? | +----------------------------------------------------+ Best States ------------- Heat Dissipation 25 Energy Generation 10 Energy Capacity 250 Matter Stores 253 Matter Capacity 300 Sight Range 16 Terrain Scan Density 10 Evasion (%) 44 Item Schematics ----------------- None Robot Schematics ------------------ None Fabricated ------------ Nothing Repaired ---------- Nothing Studied --------- None Alien Tech Used ----------------- None Achievements -------------- None Challenges ------------ None Game ------ Seed RegenerativeLatentNanovents Manual? 0 Play Time 00:10:46 Cumulative 53.1 hours Start 2026.02.11 @ 18:11:00 End 2026.02.11 @ 18:21:19 Sessions 1 Manual Loads 0 Difficulty Rogue Special Mode None Game No. 82 Rogue 82 Adventurer 0 Explorer 0 Win Type - Total 1 Types 1/0/0/0/0/0/0/0/0/0 Lore% 16 Gallery% 27 Achievement% 17 Wizard Run 0 Options --------- Layout 0 ASCII 1 Keyboard 1 Movement Vi Keybinds 0 Fullscreen 2 Font 18/SmallcapsGlow Map View 76x50 Zoom Use 0% Tactical HUD 1 Map Filters NONE Filters NONE Steam 1 RUN: e2cbf269-b7d9-421f-a46b-1d4828f32d4e